lending/lending_fUSD_20260310
["ID","MTS","AMOUNT","RATE_DAILY","PERIOD"]
[408097644,1773144640399,-2473.85573477,0.00018727,3]
[408097645,1773144640408,-221.911124,0.00018735,2]
[408097646,1773144640417,-4734.29313654,0.00018759,2]
[408097647,1773144640427,-26077.5331813,0.00018784,2]
[408097648,1773144640436,-1000.0,0.000188,6]
[408097649,1773144640445,-166.66,0.00018801,2]
[408097650,1773144640455,-5626.49677955,0.00018848,2]
[408097651,1773144640466,-250.0,0.00018848,2]
[408097652,1773144640477,-695.39793187,0.00018848,2]
[408097653,1773144640486,-250.0,0.00018848,2]
[408097654,1773144640495,-250.0,0.00018848,2]
[408097655,1773144640506,-250.0,0.00018848,2]
[408097656,1773144640515,-250.0,0.00018848,2]
[408097657,1773144640525,-250.0,0.00018848,2]
[408097658,1773144640534,-1500.0,0.00018848,2]
[408097659,1773144640547,-250.0,0.00018848,2]
[408097660,1773144640556,-1500.0,0.00018848,2]
[408097661,1773144640565,-250.0,0.00018848,2]
[408097662,1773144640574,-1592.44280863,0.00018848,2]
[408097664,1773144640583,-1000.0,0.00018848,2]
[408097665,1773144640593,-578.20924308,0.00018848,2]
[408097667,1773144640602,-250.0,0.00018848,2]
[408097669,1773144640611,-250.0,0.00018848,2]
[408097670,1773144640620,-500.0,0.00018848,2]
[408097671,1773144640629,-250.0,0.00018848,2]
[408097672,1773144640638,-151.0,0.00018848,2]
[408097673,1773144640647,-10000.0,0.00018848,2]
[408097674,1773144640656,-7503.13469147,0.00018848,2]
[408097675,1773144640665,-250.0,0.00018848,2]
[408097676,1773144640674,-200.0,0.00018848,2]
[408097677,1773144640683,-1000.0,0.00018848,2]
[408097678,1773144640692,-250.0,0.00018848,2]
[408097679,1773144640702,-174.61919141,0.00018848,2]
[408097680,1773144640711,-773.73733787,0.00018848,2]
[408097681,1773144640720,-250.0,0.00018848,2]
[408097682,1773144640729,-250.0,0.00018848,2]
[408097683,1773144640738,-250.0,0.00018848,2]
[408097684,1773144640748,-250.0,0.00018848,2]
[408097685,1773144640757,-250.0,0.00018848,2]
[408097686,1773144640766,-256.00624791,0.00018848,2]
[408097687,1773144640775,-743.50770149,0.00018848,2]
[408097688,1773144640785,-266.11523531,0.00018848,2]
[408097689,1773144640795,-1500.0,0.00018848,2]
[408097690,1773144640803,-1500.0,0.00018848,2]
[408097691,1773144640813,-1500.0,0.00018848,2]
[408097692,1773144640822,-1500.0,0.00018848,2]
[408097693,1773144640831,-262.90206542,0.00018848,2]
[408097694,1773144640841,-1500.0,0.00018848,2]
[408097695,1773144640850,-1500.0,0.00018848,2]
[408097696,1773144640859,-1041.02516385,0.00018848,2]
[408097697,1773144640868,-668.65185757,0.00018848,2]
[408097698,1773144640877,-284.23461193,0.00018848,2]
[408097699,1773144640887,-514.07468829,0.00018861,2]
[408097700,1773144640896,-1300.0,0.000189,6]
[408097701,1773144640905,-151.0,0.00018903,2]
[408097702,1773144640914,-224.88505534,0.00018913,2]
[408097703,1773144640923,-26077.5331813,0.00018939,2]
[408097704,1773144640932,-4734.29313654,0.00018944,2]
[408097705,1773144640941,-151.0,0.00018958,2]
[408097706,1773144640951,-500.0,0.00018959,7]
[408097707,1773144640960,-21925.96350167,0.00019,2]
[408097708,1773144640969,-514.07468829,0.00019006,2]
[408097709,1773144640978,-151.0,0.00019013,2]
[408097710,1773144640988,-2000.0,0.00019022,2]
[408097711,1773144640997,-272.874925,0.00019068,2]
[408097712,1773144641006,-288.79400444,0.00019068,2]
[408097713,1773144641015,-150.0,0.00019087,2]
[408097714,1773144641025,-26077.5331813,0.00019094,2]
[408097715,1773144641034,-300.0,0.000191,2]
[408097716,1773144641043,-4734.29313654,0.0001913,2]
[408097717,1773144641052,-514.07468829,0.0001915,2]
[408097718,1773144641061,-166.66,0.00019166,2]
[408097719,1773144641071,-1533.75,0.00019178,2]
[408097720,1773144641080,-1533.75,0.00019178,2]
[408097721,1773144641090,-1533.75,0.00019178,2]
[408097722,1773144641099,-1533.75,0.00019178,2]
[408097723,1773144641109,-1533.75,0.00019178,2]
[408097724,1773144641119,-1533.75,0.00019178,2]
[408097725,1773144641128,-1533.75,0.00019178,2]
[408097726,1773144641138,-1533.75,0.00019178,2]
[408097727,1773144641147,-1533.75,0.00019178,2]
[408097728,1773144641156,-1533.75,0.00019178,2]
[408097729,1773144641166,-1533.75,0.00019178,2]
[408097730,1773144641175,-787.0,0.00019178,2]
[408097731,1773144641184,-2000.0,0.000192,2]
[408097732,1773144641194,-3914.82311288,0.0001922,2]
[408097733,1773144641204,-1000.0,0.00019221,2]
[408097734,1773144641213,-234.81595298,0.00019221,2]
[408097735,1773144641223,-1000.0,0.00019221,2]
[408097736,1773144641241,-1000.0,0.00019221,2]
[408097737,1773144641253,-1000.0,0.00019221,2]
[408097738,1773144641262,-1000.0,0.00019221,2]
[408097739,1773144641271,-1000.0,0.00019221,2]
[408097740,1773144641280,-1000.0,0.00019221,2]
[408097741,1773144641289,-1000.0,0.00019221,2]
[408097742,1773144641299,-1000.0,0.00019221,2]
[408097743,1773144641309,-2121.5494,0.00019221,2]
[408097744,1773144641318,-500.0,0.00019233,7]
[408097745,1773144641327,-26077.5331813,0.0001925,2]
[408097746,1773144641337,-280.0,0.00019253,3]
[408097747,1773144641346,-1533.75,0.00019293,2]
[408097748,1773144641356,-514.07468829,0.00019294,2]
[408097749,1773144641365,-3499.0,0.00019296,2]
[408097750,1773144641375,-1342.0,0.00019296,2]
[408097751,1773144641385,-619.0,0.00019296,2]
[408097752,1773144641394,-1213.0,0.00019296,2]
[408097753,1773144641404,-922.0,0.00019296,2]
[408097754,1773144641413,-5995.0,0.00019296,2]
[408097755,1773144641423,-2518.577,0.00019296,2]
[408097756,1773144641432,-362.0,0.000193,5]
[408097757,1773144641442,-1449.0,0.000193,5]
[408097758,1773144641452,-250.0,0.000193,3]
[408097759,1773144641462,-500.0,0.00019313,2]
[408097760,1773144641475,-2268.5365656,0.00019313,2]
[408097761,1773144641484,-11365.3186014,0.00019313,2]
[408097762,1773144641494,-4734.29313654,0.00019315,2]
[408097763,1773144641503,-52823.0214516,0.00019318,2]
[408097764,1773144641513,-1933.8863808,0.00019318,2]
[408097765,1773144641522,-786.18,0.0001932,2]
[408097766,1773144641531,-786.18,0.0001932,2]
[408097767,1773144641544,-786.18,0.0001932,2]
[408097768,1773144641553,-786.18,0.0001932,2]
[408097769,1773144641562,-200.0,0.00019321,2]
[408097770,1773144641571,-250.0,0.00019321,3]
[408097771,1773144641581,-337.5,0.0001933,2]
[408097772,1773144641590,-786.18,0.00019338,2]
[408097773,1773144641600,-224.88505534,0.00019393,2]
[408097774,1773144641610,-1000.0,0.00019396,2]
[408097775,1773144641619,-200.0,0.00019396,2]
[408097776,1773144641628,-181.08010149,0.00019396,2]
[408097777,1773144641638,-500.0,0.00019397,2]
[408097778,1773144641647,-854.111,0.000194,2]
[408097779,1773144641656,-500.0,0.00019421,7]
[408097780,1773144641666,-514.07468829,0.00019438,2]
[408097781,1773144641675,-5064.5971202,0.000195,2]
[408097782,1773144641685,-4734.29313654,0.00019501,2]
[408097783,1773144641694,-500.0,0.00019507,7]
[408097784,1773144641705,-166.66,0.00019535,2]
[408097785,1773144641714,-150.0,0.00019543,4]
[408097786,1773144642045,-1411.10738095,0.0001957,2]
[408097787,1773144642055,-514.07468829,0.00019583,2]
[408097788,1773144642064,-1486.61370354,0.00019637,5]
[408097789,1773144642073,-4734.29313654,0.00019686,2]
[408097790,1773144642083,-500.0,0.00019692,2]
[408097791,1773144642092,-220.89067282,0.00019692,2]
[408097792,1773144642101,-153.75048617,0.00019692,2]
[408097793,1773144642110,-204.83861542,0.00019692,2]
[408097794,1773144642120,-151.19383815,0.00019692,2]
[408097795,1773144642129,-150.0,0.00019692,2]
[408097796,1773144642138,-500.0,0.00019692,2]
[408097797,1773144642148,-500.0,0.00019692,2]
[408097798,1773144642157,-150.0,0.00019692,2]
[408097799,1773144642166,-150.0,0.00019692,2]
[408097800,1773144642177,-500.0,0.00019692,2]
[408097801,1773144642186,-151.0,0.00019698,2]
[408097802,1773144642196,-1600.0,0.000197,7]
[408097803,1773144642206,-787.0,0.00019726,2]
[408097804,1773144642216,-514.07468829,0.00019727,2]
[408097805,1773144642225,-151.0,0.00019727,2]
[408097806,1773144642234,-414.0,0.00019744,2]
[408097807,1773144642244,-500.0,0.00019747,2]
[408097808,1773144642253,-159.60904999,0.00019747,2]
[408097809,1773144642262,-508.22060755,0.00019747,2]
[408097810,1773144642271,-500.0,0.00019747,2]
[408097811,1773144642280,-152.49408871,0.00019747,2]
[408097812,1773144642289,-150.0,0.00019747,2]
[408097813,1773144642298,-509.41970448,0.00019747,2]
[408097814,1773144642308,-473.707428,0.00019768,7]
[408097815,1773144642317,-253.575093,0.00019768,2]
[408097816,1773144642327,-151.0,0.00019768,2]
[408097817,1773144642335,-188.673291,0.00019768,2]
[408097818,1773144642344,-151.0,0.00019768,2]
[408097819,1773144642353,-151.0,0.00019768,2]
[408097820,1773144642363,-151.0,0.00019768,2]
[408097821,1773144642372,-1500.0,0.00019768,2]
[408097822,1773144642381,-1500.0,0.00019768,2]
[408097823,1773144642390,-1500.0,0.00019768,2]
[408097824,1773144642399,-1500.0,0.00019768,2]
[408097825,1773144642408,-1500.0,0.00019768,2]
[408097826,1773144642419,-1500.0,0.00019768,2]
[408097827,1773144642428,-1500.0,0.00019768,2]
[408097828,1773144642437,-1500.0,0.00019768,2]
[408097829,1773144642447,-1533.75,0.0001978,2]
[408097830,1773144642456,-150.0,0.00019798,2]
[408097831,1773144642469,-300.0,0.000198,7]
[408097832,1773144642478,-310.61378813,0.00019802,2]
[408097833,1773144642488,-320.46936844,0.00019802,2]
[408097834,1773144642497,-201.77442938,0.00019802,2]
[408097835,1773144642507,-350.0,0.00019803,2]
[408097836,1773144642517,-282.87,0.00019831,2]
[408097837,1773144642526,-520.0,0.00019836,2]
[408097838,1773144642535,-168.0,0.00019857,2]
[408097839,1773144642546,-174.36681551,0.00019869,2]
[408097840,1773144642557,-514.07468829,0.00019871,2]
[408097841,1773144642566,-4734.29313654,0.00019872,2]
[408097842,1773144642575,-224.88505534,0.00019872,2]
[408097843,1773144642585,-153.59002682,0.00019875,2]
[408097844,1773144642594,-200.25,0.000199,5]
[408097845,1773144642603,-400.0,0.000199,2]
[408097846,1773144642613,-439.0,0.000199,7]
[408097847,1773144642622,-300.0,0.000199,7]
[408097848,1773144642631,-550.44,0.00019902,2]
[408097849,1773144642640,-1000.0,0.00019944,2]
[408097850,1773144642649,-276.19632162,0.00019944,2]
[408097851,1773144642658,-3092.0,0.00019964,2]
[408097852,1773144642667,-500.0,0.00019966,2]
[408097853,1773144642676,-500.0,0.00019968,2]
[408097854,1773144642685,-500.0,0.00019968,2]
[408097855,1773144642694,-500.0,0.00019968,2]
[408097856,1773144642704,-500.0,0.00019968,2]
[408097857,1773144642713,-155.0,0.00019968,2]
[408097858,1773144642723,-786.18,0.00019968,2]
[408097859,1773144642732,-786.18,0.00019968,2]
[408097860,1773144642741,-786.18,0.00019968,2]
[408097861,1773144642750,-786.18,0.00019968,2]
[408097862,1773144642759,-1533.75,0.00019968,2]
[408097863,1773144642767,-1533.75,0.00019968,2]
[408097864,1773144642777,-1533.75,0.00019968,2]
[408097865,1773144642786,-1533.75,0.00019968,2]
[408097866,1773144642795,-443.80758913,0.00019969,2]
[408097867,1773144642806,-597.93,0.00019969,2]
[408097868,1773144642819,-597.93,0.00019969,2]
[408097869,1773144642829,-597.93,0.00019969,2]
[408097870,1773144642838,-597.93,0.00019969,2]
[408097871,1773144642847,-597.93,0.00019969,2]
[408097872,1773144642856,-597.93,0.00019969,2]
[408097873,1773144642866,-597.93,0.00019969,2]
[408097874,1773144642875,-597.93,0.00019969,2]
[408097875,1773144642884,-597.93,0.00019969,2]
[408097876,1773144642894,-700.0,0.00019969,2]
[408097877,1773144642903,-700.0,0.00019969,2]
[408097878,1773144642912,-700.0,0.00019969,2]
[408097879,1773144642922,-700.0,0.00019969,2]
[408097880,1773144642931,-700.0,0.00019969,2]
[408097881,1773144642941,-700.0,0.00019969,2]
[408097882,1773144642950,-700.0,0.00019969,2]
[408097883,1773144642960,-700.0,0.00019969,2]
[408097884,1773144642969,-700.0,0.00019969,2]
[408097885,1773144642978,-700.0,0.00019969,2]
[408097886,1773144642988,-472.38526539,0.00019969,2]
[408097887,1773144642997,-227.452,0.00019969,2]
[408097888,1773144643006,-500.0,0.00019969,2]
[408097889,1773144643015,-401.37850293,0.00019969,2]
[408097890,1773144643024,-500.0,0.00019969,2]
[408097891,1773144643033,-500.0,0.00019969,2]
[408097892,1773144643043,-402.00027926,0.00019969,2]
[408097893,1773144643052,-500.0,0.00019969,2]
[408097894,1773144643061,-500.0,0.00019969,2]
[408097895,1773144643070,-500.0,0.00019969,2]
[408097896,1773144643079,-200.3744677,0.00019969,2]
[408097897,1773144643088,-500.0,0.00019969,2]
[408097898,1773144643097,-500.0,0.00019969,2]
[408097899,1773144643107,-500.0,0.00019969,2]
[408097900,1773144643116,-500.0,0.00019969,2]
[408097901,1773144643130,-500.0,0.00019969,2]
[408097902,1773144643139,-500.0,0.00019969,2]
[408097903,1773144643149,-500.0,0.00019969,2]
[408097904,1773144643158,-500.0,0.00019969,2]
[408097905,1773144643167,-500.0,0.00019969,2]
[408097906,1773144643177,-500.0,0.00019969,2]
[408097907,1773144643186,-500.0,0.00019969,2]
[408097908,1773144643196,-460.50920046,0.00019969,2]
[408097909,1773144643205,-500.0,0.00019969,2]
[408097910,1773144643214,-153.51636902,0.00019969,2]
[408097911,1773144643223,-500.0,0.00019969,2]
[408097912,1773144643232,-500.0,0.00019969,2]
[408097913,1773144643241,-500.0,0.00019969,2]
[408097914,1773144643253,-197.52739108,0.00019969,2]
[408097915,1773144643263,-577.35535146,0.00019969,2]
[408097916,1773144643272,-500.0,0.00019969,2]
[408097917,1773144643281,-500.0,0.00019969,2]
[408097918,1773144643291,-500.0,0.00019969,2]
[408097919,1773144643300,-500.0,0.00019969,2]
[408097920,1773144643309,-500.0,0.00019969,2]
[408097921,1773144643318,-500.0,0.00019969,2]
[408097922,1773144643328,-500.0,0.00019969,2]
[408097923,1773144643337,-500.0,0.00019969,2]
[408097924,1773144643346,-530.17632489,0.00019969,2]
[408097925,1773144643355,-500.0,0.00019969,2]
[408097926,1773144643364,-54.69941803,0.00019969,2]
[408097927,1773144643386,-398.23705892,0.00019969,2]
[408097928,1773144643397,-47.06352305,0.00019969,2]
[408097929,1773144643407,-500.0,0.00019969,2]
[408097930,1773144643415,-500.0,0.00019969,2]
[408097931,1773144643425,-388.81261983,0.00019969,2]
[408097932,1773144643436,-111.18738017,0.00019969,2]
[408097933,1773144643445,-479.53617645,0.00019969,2]
[408097934,1773144643456,-20.46382355,0.00019969,2]
[408097935,1773144643468,-500.0,0.00019969,2]
[408097936,1773144643478,-595.09011649,0.00019969,2]
[408097937,1773144643487,-500.0,0.00019969,2]
[408097938,1773144643496,-500.0,0.00019969,2]
[408097939,1773144643507,-500.0,0.00019969,2]
[408097940,1773144643517,-500.0,0.00019969,2]
[408097941,1773144643526,-375.02339142,0.00019969,2]
[408097942,1773144643536,-500.0,0.00019969,2]
[408097943,1773144643547,-500.0,0.00019969,2]
[408097944,1773144643557,-500.0,0.00019969,2]
[408097945,1773144643566,-500.0,0.00019969,2]
[408097946,1773144643575,-500.0,0.00019969,2]
[408097947,1773144643584,-500.0,0.00019969,2]
[408097948,1773144643594,-222.37452403,0.00019969,2]
[408097949,1773144643603,-644.96652182,0.00019969,2]
[408097950,1773144643612,-500.0,0.00019969,2]
[408097951,1773144643622,-500.0,0.00019969,2]
[408097952,1773144643631,-500.0,0.00019969,2]
[408097953,1773144643640,-500.0,0.00019969,2]
[408097954,1773144643651,-500.0,0.00019969,2]
[408097955,1773144643660,-361.61257684,0.00019969,2]
[408097956,1773144643670,-566.78811353,0.00019969,2]
[408097957,1773144643679,-354.62389562,0.00019969,2]
[408097987,1773144645064,-489.90981059,0.00018535,2]
[408097988,1773144645079,-4503.33738941,0.00018535,2]
[408097989,1773144645088,-156.00112755,0.0001987,2]
[408097990,1773144645097,-156.00112755,0.0001987,2]
[408097991,1773144645107,-156.00112755,0.00019871,2]
[408097992,1773144645116,-156.00112755,0.00019871,2]
[408097993,1773144645125,-156.00112755,0.00019872,2]
[408097994,1773144645134,-156.00112755,0.00019872,2]
[408097995,1773144645143,-1388.0,0.0001996,5]
[408097996,1773144645152,-145.37610438,0.00019969,2]
[408097997,1773144645161,-500.0,0.00019969,2]
[408097998,1773144645171,-232.71590469,0.00019969,2]
[408097999,1773144645182,-267.28409531,0.00019969,2]
[408098000,1773144645191,-500.0,0.00019969,2]
[408098001,1773144645200,-500.0,0.00019969,2]
[408098002,1773144645209,-500.0,0.00019969,2]
[408098003,1773144645218,-500.0,0.00019969,2]
[408098004,1773144645227,-500.0,0.00019969,2]
[408098005,1773144645237,-500.0,0.00019969,2]
[408098006,1773144645247,-500.0,0.00019969,2]
[408098007,1773144645256,-500.0,0.00019969,2]
[408098008,1773144645265,-500.0,0.00019969,2]
[408098009,1773144645274,-500.0,0.00019969,2]
[408098010,1773144645282,-327.61517879,0.00019969,2]
[408098011,1773144645292,-214.11068435,0.00019969,2]
[408098012,1773144645301,-500.0,0.00019969,2]
[408098013,1773144645310,-500.0,0.00019969,2]
[408098014,1773144645319,-500.0,0.00019969,2]
[408098015,1773144645327,-500.0,0.00019969,2]
[408098016,1773144645338,-500.0,0.00019969,2]
[408098017,1773144645348,-500.0,0.00019969,2]
[408098018,1773144645357,-500.0,0.00019969,2]
[408098019,1773144645366,-500.0,0.00019969,2]
[408098020,1773144645375,-500.0,0.00019969,2]
[408098021,1773144645384,-500.0,0.00019969,2]
[408098022,1773144645393,-500.0,0.00019969,2]
[408098023,1773144645402,-500.0,0.00019969,2]
[408098024,1773144645412,-500.0,0.00019969,2]
[408098025,1773144645421,-500.0,0.00019969,2]
[408098026,1773144645430,-500.0,0.00019969,2]
[408098027,1773144645439,-500.0,0.00019969,2]
[408098028,1773144645448,-500.0,0.00019969,2]
[408098029,1773144645457,-500.0,0.00019969,2]
[408098030,1773144645471,-500.0,0.00019969,2]
[408098031,1773144645480,-500.0,0.00019969,2]
[408098032,1773144645489,-500.0,0.00019969,2]
[408098033,1773144645498,-222.96698483,0.00019969,2]
[408098034,1773144645509,-500.0,0.00019969,2]
[408098035,1773144645518,-500.0,0.00019969,2]
[408098036,1773144645531,-500.0,0.00019969,2]
[408098037,1773144645542,-500.0,0.00019969,2]
[408098038,1773144645552,-540.53117105,0.00019969,2]
[408098039,1773144645561,-500.0,0.00019969,2]
[408098040,1773144645571,-500.0,0.00019969,2]
[408098041,1773144645580,-500.0,0.00019969,2]
[408098042,1773144645589,-500.0,0.00019969,2]
[408098043,1773144645598,-500.0,0.00019969,2]
[408098044,1773144645607,-500.0,0.00019969,2]
[408098045,1773144645617,-500.0,0.00019969,2]
[408098046,1773144645626,-339.76755962,0.00019969,2]
[408098047,1773144645636,-500.0,0.00019969,2]
[408098048,1773144645646,-500.0,0.00019969,2]
[408098050,1773144645655,-500.0,0.00019969,2]
[408098052,1773144645664,-500.0,0.00019969,2]
[408098054,1773144645674,-500.0,0.00019969,2]
[408098055,1773144645683,-500.0,0.00019969,2]
[408098057,1773144645692,-500.0,0.00019969,2]
[408098059,1773144645701,-500.0,0.00019969,2]
[408098061,1773144645711,-500.0,0.00019969,2]
[408098063,1773144645720,-500.0,0.00019969,2]
[408098065,1773144645729,-500.0,0.00019969,2]
[408098067,1773144645739,-500.0,0.00019969,2]
[408098069,1773144645748,-500.0,0.00019969,2]
[408098071,1773144645758,-500.0,0.00019969,2]
[408098073,1773144645767,-500.0,0.00019969,2]
[408098075,1773144645777,-500.0,0.00019969,2]
[408098077,1773144645786,-500.0,0.00019969,2]
[408098080,1773144645795,-521.67,0.00019969,2]
[408098082,1773144645804,-521.67,0.00019969,2]
[408098084,1773144645814,-521.67,0.00019969,2]
[408098086,1773144645823,-521.67,0.00019969,2]
[408098088,1773144645832,-521.67,0.00019969,2]
[408098090,1773144645841,-521.67,0.00019969,2]
[408098092,1773144645850,-521.67,0.00019969,2]
[408098094,1773144645860,-521.67,0.00019969,2]
[408098095,1773144645869,-500.0,0.00019969,2]
[408098096,1773144645878,-500.0,0.00019969,2]
[408098097,1773144645887,-500.0,0.00019969,2]
[408098098,1773144645896,-500.0,0.00019969,2]
[408098099,1773144645906,-500.0,0.00019969,2]
[408098100,1773144645915,-500.0,0.00019969,2]
[408098101,1773144645926,-500.0,0.00019969,2]
[408098102,1773144645935,-500.0,0.00019969,2]
[408098103,1773144645944,-500.0,0.00019969,2]
[408098104,1773144645953,-500.0,0.00019969,2]
[408098105,1773144645963,-263.52762498,0.00019969,2]
[408098106,1773144645972,-500.0,0.00019969,2]
[408098107,1773144645984,-500.0,0.00019969,2]
[408098108,1773144645993,-500.0,0.00019969,2]
[408098109,1773144646002,-500.0,0.00019969,2]
[408098110,1773144646012,-208.04964139,0.00019969,2]
[408098111,1773144646023,-500.0,0.00019969,2]
[408098112,1773144646032,-500.0,0.00019969,2]
[408098113,1773144646042,-500.0,0.00019969,2]
[408098115,1773144646051,-500.0,0.00019969,2]
[408098116,1773144646060,-500.0,0.00019969,2]
[408098118,1773144646069,-500.0,0.00019969,2]
[408098120,1773144646078,-500.0,0.00019969,2]
[408098121,1773144646087,-500.0,0.00019969,2]
[408098123,1773144646096,-500.0,0.00019969,2]
[408098124,1773144646105,-500.0,0.00019969,2]
[408098126,1773144646114,-500.0,0.00019969,2]
[408098127,1773144646124,-500.0,0.00019969,2]
[408098129,1773144646133,-500.0,0.00019969,2]
[408098131,1773144646142,-500.0,0.00019969,2]
[408098132,1773144646151,-500.0,0.00019969,2]
[408098134,1773144646161,-500.0,0.00019969,2]
[408098136,1773144646170,-500.0,0.00019969,2]
[408098137,1773144646180,-500.0,0.00019969,2]
[408098139,1773144646189,-500.0,0.00019969,2]
[408098141,1773144646198,-500.0,0.00019969,2]
[408098142,1773144646207,-500.0,0.00019969,2]
[408098144,1773144646216,-500.0,0.00019969,2]
[408098146,1773144646226,-575.74024748,0.00019969,2]
[408098147,1773144646235,-500.0,0.00019969,2]
[408098149,1773144646244,-500.0,0.00019969,2]
[408098151,1773144646253,-356.41356887,0.00019969,2]
[408098153,1773144646263,-500.0,0.00019969,2]
[408098154,1773144646272,-591.45771308,0.00019969,2]
[408098156,1773144646282,-500.0,0.00019969,2]
[408098158,1773144646291,-500.0,0.00019969,2]
[408098159,1773144646300,-227.51720605,0.00019969,2]
[408098160,1773144646310,-500.0,0.00019969,2]
[408098161,1773144646320,-503.03,0.00019969,2]
[408098162,1773144646329,-503.03,0.00019969,2]
[408098163,1773144646338,-503.03,0.00019969,2]
[408098164,1773144646347,-503.03,0.00019969,2]
[408098165,1773144646357,-503.03,0.00019969,2]
[408098166,1773144646367,-503.03,0.00019969,2]
[408098167,1773144646376,-503.03,0.00019969,2]
[408098168,1773144646385,-503.03,0.00019969,2]
[408098169,1773144646394,-500.0,0.00019969,2]
[408098170,1773144646404,-500.0,0.00019969,2]
[408098171,1773144646414,-500.0,0.00019969,2]
[408098172,1773144646423,-500.0,0.00019969,2]
[408098173,1773144646433,-500.0,0.00019969,2]
[408098174,1773144646443,-500.0,0.00019969,2]
[408098175,1773144646452,-500.0,0.00019969,2]
[408098176,1773144646463,-500.0,0.00019969,2]
[408098177,1773144646474,-535.82346155,0.00019969,2]
[408098178,1773144646483,-500.0,0.00019969,2]
[408098179,1773144646493,-500.0,0.00019969,2]
[408098180,1773144646502,-500.0,0.00019969,2]
[408098181,1773144646513,-500.0,0.00019969,2]
[408098182,1773144646523,-500.0,0.00019969,2]
[408098183,1773144646532,-500.0,0.00019969,2]
[408098184,1773144646543,-500.0,0.00019969,2]
[408098185,1773144646552,-500.0,0.00019969,2]
[408098186,1773144646562,-500.0,0.00019969,2]
[408098187,1773144646571,-500.0,0.00019969,2]
[408098188,1773144646580,-500.0,0.00019969,2]
[408098189,1773144646589,-582.08274605,0.00019969,2]
[408098190,1773144646599,-900.5,0.00019969,2]
[408098191,1773144646608,-900.5,0.00019969,2]
[408098192,1773144646617,-900.5,0.00019969,2]
[408098193,1773144646626,-900.5,0.00019969,2]
[408098194,1773144646635,-900.5,0.00019969,2]
[408098195,1773144646644,-900.5,0.00019969,2]
[408098196,1773144646653,-900.5,0.00019969,2]
[408098197,1773144646663,-900.5,0.00019969,2]
[408098198,1773144646672,-522.58561873,0.00019969,2]
[408098199,1773144646682,-500.0,0.00019969,2]
[408098200,1773144646691,-515.50389699,0.00019969,2]
[408098201,1773144646700,-500.0,0.00019969,2]
[408098202,1773144646710,-626.83062823,0.00019969,2]
[408098203,1773144646719,-500.0,0.00019969,2]
[408098204,1773144646729,-515.12497816,0.00019969,2]
[408098205,1773144646739,-507.76387762,0.00019969,2]
[408098206,1773144646748,-500.0,0.00019969,2]
[408098207,1773144646757,-500.0,0.00019969,2]
[408098208,1773144646767,-220.34114178,0.00019969,2]
[408098209,1773144646776,-500.0,0.00019969,2]
[408098210,1773144646788,-500.0,0.00019969,2]
[408098211,1773144646797,-500.0,0.00019969,2]
[408098212,1773144646806,-191.30814144,0.00019969,2]
[408098213,1773144646815,-500.0,0.00019969,2]
[408098214,1773144646824,-500.0,0.00019969,2]
[408098215,1773144646833,-500.0,0.00019969,2]
[408098216,1773144646843,-500.0,0.00019969,2]